{"text_format":"1","workbook":"xlsx","n_sheets":2,"sheets":["Pasiūlymas","Subtiekėjai ir priedai"],"not_rendered":{"charts":0,"images":0,"macros":1,"external_links":0,"defined_names":0,"comments":0,"pivot_tables":0},"unopened":[],"bounds":{"document_bytes":16777216,"sheet_cells":100000,"rows_first":2000,"rows_last":500,"rows_between":2000,"halvings":0,"cell_chars":16384,"cell_head_chars":4096},"cells_cut":0,"cells_raw":0,"read":"whole","date_system":"1900"}

{"sheet":"Pasiūlymas","index":0,"n_rows":740,"n_cols":8,"rows_kept":740,"cut":false,"hidden":false,"merged":[[29,0,29,2],[29,3,29,5],[11,0,11,1],[11,2,11,5],[12,0,12,1],[12,2,12,5],[13,0,13,1],[13,2,13,5],[14,0,14,1],[14,2,14,5],[15,0,15,1],[15,2,15,5],[16,0,16,1],[16,2,16,5],[17,0,17,1],[17,2,17,5],[18,0,18,1],[18,2,18,5],[23,0,23,5],[19,0,19,1],[20,0,20,1],[19,2,19,5],[20,2,20,5],[22,0,22,5],[27,0,27,5],[28,0,28,5],[24,0,24,5],[25,0,25,5],[26,0,26,5]]}
[]
["PIRKIMO SĄLYGŲ PRIEDAS \"PASIŪLYMŲ FORMA\""]
[]
["LABORATORINIAI REAGENTAI IR PAPILDOMOS PRIEMONĖS"]
[]
["Kam:","VšĮ LSMU Kauno ligoninė"]
[]
["Data:","2022-06-09"]
["Nr.:","–"]
["Vieta:","Avižienių k."]
[]
["Tiekėjo pavadinimas / Ūkio subjektų grupės nariai:",null,"UAB „DIAMEDICA“"]
["Tiekėjo kodas (-ai):",null,111768155]
["Tiekėjo adresas (-ai):",null,"Gėlių g. 2, Avižienių k., Vilniaus raj. sav., LT-14184 Lietuva"]
["Tiekėjo PVM mokėtojo kodas(-ai):",null,"LT117681515"]
["Tiekėjo / Ūkio subjektų grupės atsakingo partnerio sąskaitos numeris, banko pavadinimas ir banko kodas (-ai):",null,"Luminor Bank AB\nBanko kodas: 21400\nAtsisk. sąsk.: LT492140030002131892"]
["Asmens atsakingo už pasiūlymą vardas, pavardė:",null,"Viešųjų pirkimų specialistė Lina Alesienė"]
["Asmens atsakingo už pasiūlymą telefono numeris, el. pašto adresas:",null,"8-5-279-0080, konkursai@diamedica.lt "]
["Tiekėjo / Ūkio subjektų grupės, laimėjimo atveju, pasirašančio sutartį asmens vardas, pavardė, pareigos:",null,"Generalinis direktorius Stasys Križanauskas"]
["Tiekėjo / Ūkio subjektų grupės, laimėjimo atveju, už sutarties vykdymą atsakingo asmens vardas, pavardė, telefono numeris, elektroninio pašto adresas:",null,"42 pirkimo daliai\nProduktų ir pardavimo vadybininkas\nRemigijus Gegelevičius\n+370 650 13 237\nremigijus@diamedica.lt \n\n46 pirkimo daliai\nGeneralinis direktorius\nStasys Križanauskas\n+370 699 93 258\nstasys@diamedica.lt "]
["(1) Tiekėjo / Ūkio subjektų grupės narių, (2) ūkio subjektų, kurių pajėgumais remiamasi, ir (3) jei pašalinimo pagrindai taikomi visiems subtiekėjams - subtiekėjų, kolegialaus priežiūros organo (Stebėtojų tarybos) ir (ar) kolegialaus valdymo organo (Valdybos) narių sąrašas (jei sudaryta) ir (ar) asmuo, kuriam suteikti VPĮ 46 str. 2 d. 2 p. numatyti įgaliojimai",null,"Valdyba:\nStasys Križanauskas\nJaan Saluvere",null,null,null,{"$f":"IF((SUMPRODUCT(--(C21=\"\"))>0), \"Privaloma užpildyti, kai taikomi pašalinimo pagrindai\", \"\")","v":""}]
[]
["Tiekėjo patvirtinimai:"]
["1. Šiuo pasiūlymu pažymime, kad sutinkame su visomi pirkimo sąlygomis, nustatytomis:"]
["1.1. viešojo pirkimo dokumentuose"]
["1.2. kituose pirkimo dokumentuose (jų paaiškinimuose, papildymuose)."]
["2. Patvirtiname, kad informacija ir duomenys, pateikti pasiūlyme, yra teisingi ir apima viską, ko reikia tinkamam sutarties įvykdymui"]
["3. Patvirtiname, kad jei pasiūlyme nenurodyti kolegialaus priežiūros/valdymo organų nariai, šie organai juridiniuose asmenyse nėra sudaryti (taikoma, kai pirkimo dokumentuose nustatyti pašalinimo pagrindai)."]
["4. Pasiūlymas galioja iki termino, nustatyto pirkimo dokumentuose."]
["5. Tais atvejais, kai pagal galiojančius teisės aktus tiekėjui nereikia mokėti PVM, jis nurodo priežastis, dėl kurių PVM nemoka:"]
["6. Tiekėjas kainas pateikia, nurodydamas ne daugiau skaičių po kablelio, nei leidžiama pirkimo dokumentuose."]
["1. DALIS","KORTELĖS  REVERSINIAM KRAUJO GRUPIŲ NUSTATYMUI IMUNOHEMATOLOGINIŲ TYRIMŲ SISTEMA ORTHOAUTO VUE INNOVA"]
[]
["Tiekėjo pasiūlymas:"]
["Nr.","Pavadinimas","Maksimalus kiekis","Mato vienetas","Vieneto įkainis be PVM, Eur","Suma be PVM, Eur","Siūlomos prekės modelis ir modelio modifikacija (jei taikoma)","Siūlomų parametrų reikšmės"]
["1.","Kortelės  reversiniam kraujo grupių nustatymui imunohematologinių tyrimų sistema OrthoAuto Vue Innova"]
["1.1.","Kortelės  reversiniam kraujo grupių nustatymui imunohematologinių tyrimų sistema OrthoAuto Vue Innova ",1800,"tyr.",null,{"$f":"IF(ISBLANK(E37),\"\", PRODUCT(C37,E37))","v":""}]
["1.1.1.","kortelė iš 6 šulinėlių"]
[null,null,null,null,"Suma be PVM",{"$f":"IF((COUNT(C37:C38)<>COUNT(F37:F38)),\"\", SUM(F37:F38))","v":""},{"$f":"IF((COUNT(C37:C38)<>COUNT(F37:F38)),\"Neužpildytos visų objektų kainos\", \"\")","v":"Neužpildytos visų objektų kainos"}]
[null,null,null,null,"PVM suma"]
[null,null,null,null,"Suma su PVM",{"$f":"IF(ISBLANK(F40), \"\", SUM(F39:F40))","v":""}]
[]
[]
[]
["2. DALIS","STANDARTINIAI ERITROCITAI REVERSINIAM KRAUJO GRUPĖS NUSTATYMUI ORTHO AUTO VUE INNOVA SISTEMAI"]
[]
["Tiekėjo pasiūlymas:"]
["Nr.","Pavadinimas","Maksimalus kiekis","Mato vienetas","Vieneto įkainis be PVM, Eur","Suma be PVM, Eur","Siūlomos prekės modelis ir modelio modifikacija (jei taikoma)","Siūlomų parametrų reikšmės"]
["2.","Standartiniai eritrocitai reversiniam kraujo grupės nustatymui Ortho Auto Vue Innova sistemai"]
["2.1.","Standartiniai eritrocitai reversiniam kraujo grupės nustatymui Ortho Auto Vue Innova sistemai",24,"pakuot.",null,{"$f":"IF(ISBLANK(E50),\"\", PRODUCT(C50,E50))","v":""}]
["2.1.1.","Dviejų tipų (A1, B)"]
["2.1.2.","Išfasavimas ne daugiau kaip 3 ml"]
[null,null,null,null,"Suma be PVM",{"$f":"IF((COUNT(C50:C52)<>COUNT(F50:F52)),\"\", SUM(F50:F52))","v":""},{"$f":"IF((COUNT(C50:C52)<>COUNT(F50:F52)),\"Neužpildytos visų objektų kainos\", \"\")","v":"Neužpildytos visų objektų kainos"}]
[null,null,null,null,"PVM suma"]
[null,null,null,null,"Suma su PVM",{"$f":"IF(ISBLANK(F54), \"\", SUM(F53:F54))","v":""}]
[]
[]
[]
["3. DALIS","NATRIO ŠARMAS"]
[]
["Tiekėjo pasiūlymas:"]
["Nr.","Pavadinimas","Maksimalus kiekis","Mato vienetas","Vieneto įkainis be PVM, Eur","Suma be PVM, Eur","Siūlomos prekės modelis ir modelio modifikacija (jei taikoma)","Siūlomų parametrų reikšmės"]
["3.","Natrio šarmas"]
["3.1.","Natrio šarmas",30,"vnt.",null,{"$f":"IF(ISBLANK(E64),\"\", PRODUCT(C64,E64))","v":""}]
["3.1.1.","Išfasavimas ne daugiau kaip 1 litras"]
["3.1.2.","10 procentų"]
[null,null,null,null,"Suma be PVM",{"$f":"IF((COUNT(C64:C66)<>COUNT(F64:F66)),\"\", SUM(F64:F66))","v":""},{"$f":"IF((COUNT(C64:C66)<>COUNT(F64:F66)),\"Neužpildytos visų objektų kainos\", \"\")","v":"Neužpildytos visų objektų kainos"}]
[null,null,null,null,"PVM suma"]
[null,null,null,null,"Suma su PVM",{"$f":"IF(ISBLANK(F68), \"\", SUM(F67:F68))","v":""}]
[]
[]
[]
["4. DALIS","VITAMINO D KONTROLIŲ RINKINYS ANALIZATORIUI VITROS 5600"]
[]
["Tiekėjo pasiūlymas:"]
["Nr.","Pavadinimas","Maksimalus kiekis","Mato vienetas","Vieneto įkainis be PVM, Eur","Suma be PVM, Eur","Siūlomos prekės modelis ir modelio modifikacija (jei taikoma)","Siūlomų parametrų reikšmės"]
["4.","Vitamino D kontrolių rinkinys analizatoriui Vitros 5600"]
["4.1.","Vitamino D kontrolių rinkinys analizatoriui Vitros 5600",3,"pakuot.",null,{"$f":"IF(ISBLANK(E78),\"\", PRODUCT(C78,E78))","v":""}]
["4.1.1.","Išfasavimas 6 po 5ml"]
["4.1.2.","3 kontrolinės medžiagos lygiai"]
[null,null,null,null,"Suma be PVM",{"$f":"IF((COUNT(C78:C80)<>COUNT(F78:F80)),\"\", SUM(F78:F80))","v":""},{"$f":"IF((COUNT(C78:C80)<>COUNT(F78:F80)),\"Neužpildytos visų objektų kainos\", \"\")","v":"Neužpildytos visų objektų kainos"}]
[null,null,null,null,"PVM suma"]
[null,null,null,null,"Suma su PVM",{"$f":"IF(ISBLANK(F82), \"\", SUM(F81:F82))","v":""}]
[]
[]
[]
["5. DALIS","KALIBRATORIUS NT-PRO BNP ANALIZATORIUI VITROS 5600"]
[]
["Tiekėjo pasiūlymas:"]
["Nr.","Pavadinimas","Maksimalus kiekis","Mato vienetas","Vieneto įkainis be PVM, Eur","Suma be PVM, Eur","Siūlomos prekės modelis ir modelio modifikacija (jei taikoma)","Siūlomų parametrų reikšmės"]
["5.","Kalibratorius NT-pro BNP analizatoriui Vitros 5600"]
["5.1.","Kalibratorius NT-pro BNP analizatoriui Vitros 5600",6,"pakuot.",null,{"$f":"IF(ISBLANK(E92),\"\", PRODUCT(C92,E92))","v":""}]
["5.1.1.","3 lygiai, 2 vnt. rinkinyje"]
[null,null,null,null,"Suma be PVM",{"$f":"IF((COUNT(C92:C93)<>COUNT(F92:F93)),\"\", SUM(F92:F93))","v":""},{"$f":"IF((COUNT(C92:C93)<>COUNT(F92:F93)),\"Neužpildytos visų objektų kainos\", \"\")","v":"Neužpildytos visų objektų kainos"}]
[null,null,null,null,"PVM suma"]
[null,null,null,null,"Suma su PVM",{"$f":"IF(ISBLANK(F95), \"\", SUM(F94:F95))","v":""}]
[]
[]
[]
["6. DALIS","KARDIOIMUNOLOGIJOS KONTROLĖ ANALIZXATORIUI VITROS 5600"]
[]
["Tiekėjo pasiūlymas:"]
["Nr.","Pavadinimas","Maksimalus kiekis","Mato vienetas","Vieneto įkainis be PVM, Eur","Suma be PVM, Eur","Siūlomos prekės modelis ir modelio modifikacija (jei taikoma)","Siūlomų parametrų reikšmės"]
["6.","Kardioimunologijos kontrolė analizxatoriui Vitros 5600"]
["6.1.","Kardioimunologijos kontrolė analizxatoriui Vitros 5600",4,"pakuot.",null,{"$f":"IF(ISBLANK(E105),\"\", PRODUCT(C105,E105))","v":""}]
["6.1.1.","3 lygiai, 2 vnt. rinkinyje"]
[null,null,null,null,"Suma be PVM",{"$f":"IF((COUNT(C105:C106)<>COUNT(F105:F106)),\"\", SUM(F105:F106))","v":""},{"$f":"IF((COUNT(C105:C106)<>COUNT(F105:F106)),\"Neužpildytos visų objektų kainos\", \"\")","v":"Neužpildytos visų objektų kainos"}]
[null,null,null,null,"PVM suma"]
[null,null,null,null,"Suma su PVM",{"$f":"IF(ISBLANK(F108), \"\", SUM(F107:F108))","v":""}]
[]
[]
[]
["7. DALIS","KALIBRATORIUS NR.1 ANALIZATORIUI VITROS 5600, VITROS 350"]
[]
["Tiekėjo pasiūlymas:"]
["Nr.","Pavadinimas","Maksimalus kiekis","Mato vienetas","Vieneto įkainis be PVM, Eur","Suma be PVM, Eur","Siūlomos prekės modelis ir modelio modifikacija (jei taikoma)","Siūlomų parametrų reikšmės"]
["7.","Kalibratorius Nr.1 analizatoriui Vitros 5600, Vitros 350"]
["7.1.","Kalibratorius Nr.1 analizatoriui Vitros 5600, Vitros 350",7,"pakuot.",null,{"$f":"IF(ISBLANK(E118),\"\", PRODUCT(C118,E118))","v":""}]
["7.1.1.","Tyrimams: Urea, Ca, Crea, Glu, Lac, Mg, Phos, Uric"]
["7.1.2.","3 lygiai, 4 vnt. rinkinyje"]
[null,null,null,null,"Suma be PVM",{"$f":"IF((COUNT(C118:C120)<>COUNT(F118:F120)),\"\", SUM(F118:F120))","v":""},{"$f":"IF((COUNT(C118:C120)<>COUNT(F118:F120)),\"Neužpildytos visų objektų kainos\", \"\")","v":"Neužpildytos visų objektų kainos"}]
[null,null,null,null,"PVM suma"]
[null,null,null,null,"Suma su PVM",{"$f":"IF(ISBLANK(F122), \"\", SUM(F121:F122))","v":""}]
[]
[]
[]
["8. DALIS","KALIBRATORIUS NR.2 ANALIZATORIUI VITROS 5600, VITROS 350"]
[]
["Tiekėjo pasiūlymas:"]
["Nr.","Pavadinimas","Maksimalus kiekis","Mato vienetas","Vieneto įkainis be PVM, Eur","Suma be PVM, Eur","Siūlomos prekės modelis ir modelio modifikacija (jei taikoma)","Siūlomų parametrų reikšmės"]
["8.","Kalibratorius Nr.2 analizatoriui Vitros 5600, Vitros 350"]
["8.1.","Kalibratorius Nr.2 analizatoriui Vitros 5600, Vitros 350",7,"pakuot.",null,{"$f":"IF(ISBLANK(E132),\"\", PRODUCT(C132,E132))","v":""}]
["8.1.1.","Tyrimams: Chol, Trig, HDLC, Cl, Na, K, "]
["8.1.2.","4 lygiai, 4 vnt. rinkinyje"]
[null,null,null,null,"Suma be PVM",{"$f":"IF((COUNT(C132:C134)<>COUNT(F132:F134)),\"\", SUM(F132:F134))","v":""},{"$f":"IF((COUNT(C132:C134)<>COUNT(F132:F134)),\"Neužpildytos visų objektų kainos\", \"\")","v":"Neužpildytos visų objektų kainos"}]
[null,null,null,null,"PVM suma"]
[null,null,null,null,"Suma su PVM",{"$f":"IF(ISBLANK(F136), \"\", SUM(F135:F136))","v":""}]
[]
[]
[]
["9. DALIS","KALIBRATORIUS NR.3 ANALIZATORIUI VITROS 5600, VITROS 350"]
[]
["Tiekėjo pasiūlymas:"]
["Nr.","Pavadinimas","Maksimalus kiekis","Mato vienetas","Vieneto įkainis be PVM, Eur","Suma be PVM, Eur","Siūlomos prekės modelis ir modelio modifikacija (jei taikoma)","Siūlomų parametrų reikšmės"]
["9.","Kalibratorius Nr.3 analizatoriui Vitros 5600, Vitros 350"]
["9.1.","Kalibratorius Nr.3 analizatoriui Vitros 5600, Vitros 350",7,"pakuot.",null,{"$f":"IF(ISBLANK(E146),\"\", PRODUCT(C146,E146))","v":""}]
["9.1.1.","Tyrimams:  Amyl, AlkP, ALT, AST, CK, GT, LIPA, LD,"]
["9.1.2.","3 lygiai, 4 vnt. rinkinyje"]
[null,null,null,null,"Suma be PVM",{"$f":"IF((COUNT(C146:C148)<>COUNT(F146:F148)),\"\", SUM(F146:F148))","v":""},{"$f":"IF((COUNT(C146:C148)<>COUNT(F146:F148)),\"Neužpildytos visų objektų kainos\", \"\")","v":"Neužpildytos visų objektų kainos"}]
[null,null,null,null,"PVM suma"]
[null,null,null,null,"Suma su PVM",{"$f":"IF(ISBLANK(F150), \"\", SUM(F149:F150))","v":""}]
[]
[]
[]
["10. DALIS","KALIBRATORIUS NR.4 ANALIZATORIUI VITROS 5600, VITROS 350"]
[]
["Tiekėjo pasiūlymas:"]
["Nr.","Pavadinimas","Maksimalus kiekis","Mato vienetas","Vieneto įkainis be PVM, Eur","Suma be PVM, Eur","Siūlomos prekės modelis ir modelio modifikacija (jei taikoma)","Siūlomų parametrų reikšmės"]
["10.","Kalibratorius Nr.4 analizatoriui Vitros 5600, Vitros 350"]
["10.1.","Kalibratorius Nr.4 analizatoriui Vitros 5600, Vitros 350",7,"pakuot.",null,{"$f":"IF(ISBLANK(E160),\"\", PRODUCT(C160,E160))","v":""}]
["10.1.1.","Tyrimams: Alb, TP, BuBc, TBIL, Fe,"]
["10.1.2.","4 lygiai, 4 vnt. rinkinyje"]
[null,null,null,null,"Suma be PVM",{"$f":"IF((COUNT(C160:C162)<>COUNT(F160:F162)),\"\", SUM(F160:F162))","v":""},{"$f":"IF((COUNT(C160:C162)<>COUNT(F160:F162)),\"Neužpildytos visų objektų kainos\", \"\")","v":"Neužpildytos visų objektų kainos"}]
[null,null,null,null,"PVM suma"]
[null,null,null,null,"Suma su PVM",{"$f":"IF(ISBLANK(F164), \"\", SUM(F163:F164))","v":""}]
[]
[]
[]
["11. DALIS","KALIBRATORIUS NR.5 ANALIZATORIUI VITROS 5600"]
[]
["Tiekėjo pasiūlymas:"]
["Nr.","Pavadinimas","Maksimalus kiekis","Mato vienetas","Vieneto įkainis be PVM, Eur","Suma be PVM, Eur","Siūlomos prekės modelis ir modelio modifikacija (jei taikoma)","Siūlomų parametrų reikšmės"]
["11.","Kalibratorius Nr.5 analizatoriui Vitros 5600"]
["11.1.","Kalibratorius Nr. 5 analizatoriui Vitros 5600",5,"pakuot.",null,{"$f":"IF(ISBLANK(E174),\"\", PRODUCT(C174,E174))","v":""}]
["11.1.1.","Tyrimams: Amon, CSF, Prot"]
["11.1.2.","3 lygiai, 4 vnt. rinkinyje"]
[null,null,null,null,"Suma be PVM",{"$f":"IF((COUNT(C174:C176)<>COUNT(F174:F176)),\"\", SUM(F174:F176))","v":""},{"$f":"IF((COUNT(C174:C176)<>COUNT(F174:F176)),\"Neužpildytos visų objektų kainos\", \"\")","v":"Neužpildytos visų objektų kainos"}]
[null,null,null,null,"PVM suma"]
[null,null,null,null,"Suma su PVM",{"$f":"IF(ISBLANK(F178), \"\", SUM(F177:F178))","v":""}]
[]
[]
[]
["12. DALIS","KALIBRATORIUS NR. 6 ANALIZATORIUI VITROS 5600"]
[]
["Tiekėjo pasiūlymas:"]
["Nr.","Pavadinimas","Maksimalus kiekis","Mato vienetas","Vieneto įkainis be PVM, Eur","Suma be PVM, Eur","Siūlomos prekės modelis ir modelio modifikacija (jei taikoma)","Siūlomų parametrų reikšmės"]
["12.","Kalibratorius Nr. 6 analizatoriui Vitros 5600"]
["12.1.","Kalibratorius Nr. 6 analizatoriui Vitros 5600",3,"pakuot.",null,{"$f":"IF(ISBLANK(E188),\"\", PRODUCT(C188,E188))","v":""}]
["12.1.1.","Tyrimams: CK-MB"]
["12.1.2.","3 lygiai, 4 vnt. rinkinyje"]
[null,null,null,null,"Suma be PVM",{"$f":"IF((COUNT(C188:C190)<>COUNT(F188:F190)),\"\", SUM(F188:F190))","v":""},{"$f":"IF((COUNT(C188:C190)<>COUNT(F188:F190)),\"Neužpildytos visų objektų kainos\", \"\")","v":"Neužpildytos visų objektų kainos"}]
[null,null,null,null,"PVM suma"]
[null,null,null,null,"Suma su PVM",{"$f":"IF(ISBLANK(F192), \"\", SUM(F191:F192))","v":""}]
[]
[]
[]
["13. DALIS","KALIBRATORIUS NR. 7 ANALIZATORIUI VITROS 5600, VITROS 350"]
[]
["Tiekėjo pasiūlymas:"]
["Nr.","Pavadinimas","Maksimalus kiekis","Mato vienetas","Vieneto įkainis be PVM, Eur","Suma be PVM, Eur","Siūlomos prekės modelis ir modelio modifikacija (jei taikoma)","Siūlomų parametrų reikšmės"]
["13.","Kalibratorius Nr. 7 analizatoriui Vitros 5600, Vitros 350"]
["13.1.","Kalibratorius Nr. 7 analizatoriui Vitros 5600, Vitros 350",4,"pakuot.",null,{"$f":"IF(ISBLANK(E202),\"\", PRODUCT(C202,E202))","v":""}]
["13.1.1.","Tyrimams: CRB"]
["13.1.2.","3 lygiai, 2 vnt. rinkinyje"]
[null,null,null,null,"Suma be PVM",{"$f":"IF((COUNT(C202:C204)<>COUNT(F202:F204)),\"\", SUM(F202:F204))","v":""},{"$f":"IF((COUNT(C202:C204)<>COUNT(F202:F204)),\"Neužpildytos visų objektų kainos\", \"\")","v":"Neužpildytos visų objektų kainos"}]
[null,null,null,null,"PVM suma"]
[null,null,null,null,"Suma su PVM",{"$f":"IF(ISBLANK(F206), \"\", SUM(F205:F206))","v":""}]
[]
[]
[]
["14. DALIS","KALIBRATORIUS FERITINUI ANALIZATORIUI VITROS 5600"]
[]
["Tiekėjo pasiūlymas:"]
["Nr.","Pavadinimas","Maksimalus kiekis","Mato vienetas","Vieneto įkainis be PVM, Eur","Suma be PVM, Eur","Siūlomos prekės modelis ir modelio modifikacija (jei taikoma)","Siūlomų parametrų reikšmės"]
["14.","Kalibratorius feritinui analizatoriui Vitros 5600"]
["14.1.","Kalibratorius feritinui analizatoriui Vitros 5600",4,"pakuot.",null,{"$f":"IF(ISBLANK(E216),\"\", PRODUCT(C216,E216))","v":""}]
["14.1.1.","3 lygiai, 3 vnt. rinkinyje"]
[null,null,null,null,"Suma be PVM",{"$f":"IF((COUNT(C216:C217)<>COUNT(F216:F217)),\"\", SUM(F216:F217))","v":""},{"$f":"IF((COUNT(C216:C217)<>COUNT(F216:F217)),\"Neužpildytos visų objektų kainos\", \"\")","v":"Neužpildytos visų objektų kainos"}]
[null,null,null,null,"PVM suma"]
[null,null,null,null,"Suma su PVM",{"$f":"IF(ISBLANK(F219), \"\", SUM(F218:F219))","v":""}]
[]
[]
[]
["15. DALIS","KALIBRATORIUS TROPONINUI I ANALIZATORIUI VITROS 5600"]
[]
["Tiekėjo pasiūlymas:"]
["Nr.","Pavadinimas","Maksimalus kiekis","Mato vienetas","Vieneto įkainis be PVM, Eur","Suma be PVM, Eur","Siūlomos prekės modelis ir modelio modifikacija (jei taikoma)","Siūlomų parametrų reikšmės"]
["15.","Kalibratorius troponinui I analizatoriui Vitros 5600"]
["15.1.","Kalibratorius troponinui I analizatoriui Vitros 5600",4,"pakuot.",null,{"$f":"IF(ISBLANK(E229),\"\", PRODUCT(C229,E229))","v":""}]
["15.1.1.","2 lygiai, 2 vnt. rinkinyje"]
[null,null,null,null,"Suma be PVM",{"$f":"IF((COUNT(C229:C230)<>COUNT(F229:F230)),\"\", SUM(F229:F230))","v":""},{"$f":"IF((COUNT(C229:C230)<>COUNT(F229:F230)),\"Neužpildytos visų objektų kainos\", \"\")","v":"Neužpildytos visų objektų kainos"}]
[null,null,null,null,"PVM suma"]
[null,null,null,null,"Suma su PVM",{"$f":"IF(ISBLANK(F232), \"\", SUM(F231:F232))","v":""}]
[]
[]
[]
["16. DALIS","VITROS KONTROLĖ I ANALIZATORIUI VITROS 5600"]
[]
["Tiekėjo pasiūlymas:"]
["Nr.","Pavadinimas","Maksimalus kiekis","Mato vienetas","Vieneto įkainis be PVM, Eur","Suma be PVM, Eur","Siūlomos prekės modelis ir modelio modifikacija (jei taikoma)","Siūlomų parametrų reikšmės"]
["16.","Vitros kontrolė I analizatoriui Vitros 5600"]
["16.1.","Vitros kontrolė I analizatoriui Vitros 5600",10,"pakuot.",null,{"$f":"IF(ISBLANK(E242),\"\", PRODUCT(C242,E242))","v":""}]
["16.1.1.","12 buteliukų pakuotėje"]
[null,null,null,null,"Suma be PVM",{"$f":"IF((COUNT(C242:C243)<>COUNT(F242:F243)),\"\", SUM(F242:F243))","v":""},{"$f":"IF((COUNT(C242:C243)<>COUNT(F242:F243)),\"Neužpildytos visų objektų kainos\", \"\")","v":"Neužpildytos visų objektų kainos"}]
[null,null,null,null,"PVM suma"]
[null,null,null,null,"Suma su PVM",{"$f":"IF(ISBLANK(F245), \"\", SUM(F244:F245))","v":""}]
[]
[]
[]
["17. DALIS","VITROS KONTROLĖ IIANALIZATORIUI VITROS 5600, VITROS 350"]
[]
["Tiekėjo pasiūlymas:"]
["Nr.","Pavadinimas","Maksimalus kiekis","Mato vienetas","Vieneto įkainis be PVM, Eur","Suma be PVM, Eur","Siūlomos prekės modelis ir modelio modifikacija (jei taikoma)","Siūlomų parametrų reikšmės"]
["17.","Vitros kontrolė IIanalizatoriui Vitros 5600, Vitros 350"]
["17.1.","Vitros kontrolė II analizatoriui Vitros 5600",10,"pakuot.",null,{"$f":"IF(ISBLANK(E255),\"\", PRODUCT(C255,E255))","v":""}]
["17.1.1.","12 butelikų pakuotėje"]
[null,null,null,null,"Suma be PVM",{"$f":"IF((COUNT(C255:C256)<>COUNT(F255:F256)),\"\", SUM(F255:F256))","v":""},{"$f":"IF((COUNT(C255:C256)<>COUNT(F255:F256)),\"Neužpildytos visų objektų kainos\", \"\")","v":"Neužpildytos visų objektų kainos"}]
[null,null,null,null,"PVM suma"]
[null,null,null,null,"Suma su PVM",{"$f":"IF(ISBLANK(F258), \"\", SUM(F257:F258))","v":""}]
[]
[]
[]
["18. DALIS","VITROS CRP KONTROLĖ I ANALIZATORIUI VITROS 5600"]
[]
["Tiekėjo pasiūlymas:"]
["Nr.","Pavadinimas","Maksimalus kiekis","Mato vienetas","Vieneto įkainis be PVM, Eur","Suma be PVM, Eur","Siūlomos prekės modelis ir modelio modifikacija (jei taikoma)","Siūlomų parametrų reikšmės"]
["18.","Vitros CRP kontrolė I analizatoriui Vitros 5600"]
["18.1.","Vitros CRP kontrolė I analizatoriui Vitros 5600, Vitros 350",10,"pakuot.",null,{"$f":"IF(ISBLANK(E268),\"\", PRODUCT(C268,E268))","v":""}]
["18.1.1.","6 buteliukai pakuotėje"]
[null,null,null,null,"Suma be PVM",{"$f":"IF((COUNT(C268:C269)<>COUNT(F268:F269)),\"\", SUM(F268:F269))","v":""},{"$f":"IF((COUNT(C268:C269)<>COUNT(F268:F269)),\"Neužpildytos visų objektų kainos\", \"\")","v":"Neužpildytos visų objektų kainos"}]
[null,null,null,null,"PVM suma"]
[null,null,null,null,"Suma su PVM",{"$f":"IF(ISBLANK(F271), \"\", SUM(F270:F271))","v":""}]
[]
[]
[]
["19. DALIS","VITROS CRP KONTROLĖ II ANALIZATORIUI VITROS 5600, VITROS 350"]
[]
["Tiekėjo pasiūlymas:"]
["Nr.","Pavadinimas","Maksimalus kiekis","Mato vienetas","Vieneto įkainis be PVM, Eur","Suma be PVM, Eur","Siūlomos prekės modelis ir modelio modifikacija (jei taikoma)","Siūlomų parametrų reikšmės"]
["19.","Vitros CRP kontrolė II analizatoriui Vitros 5600, Vitros 350"]
["19.1.","Vitros CRP kontrolė I I analizatoriui Vitros 5600, Vitros 350",10,"pakuot.",null,{"$f":"IF(ISBLANK(E281),\"\", PRODUCT(C281,E281))","v":""}]
["19.1.1.","6 butelikai pakuotėje"]
[null,null,null,null,"Suma be PVM",{"$f":"IF((COUNT(C281:C282)<>COUNT(F281:F282)),\"\", SUM(F281:F282))","v":""},{"$f":"IF((COUNT(C281:C282)<>COUNT(F281:F282)),\"Neužpildytos visų objektų kainos\", \"\")","v":"Neužpildytos visų objektų kainos"}]
[null,null,null,null,"PVM suma"]
[null,null,null,null,"Suma su PVM",{"$f":"IF(ISBLANK(F284), \"\", SUM(F283:F284))","v":""}]
[]
[]
[]
["20. DALIS","ANEMIJOS KONTROLĖ ANALIZATORIUI VITROS 5600"]
[]
["Tiekėjo pasiūlymas:"]
["Nr.","Pavadinimas","Maksimalus kiekis","Mato vienetas","Vieneto įkainis be PVM, Eur","Suma be PVM, Eur","Siūlomos prekės modelis ir modelio modifikacija (jei taikoma)","Siūlomų parametrų reikšmės"]
["20.","Anemijos kontrolė analizatoriui Vitros 5600"]
["20.1.","Anemijos kontrolė analizatoriui Vitros 5600",3,"pakuot.",null,{"$f":"IF(ISBLANK(E294),\"\", PRODUCT(C294,E294))","v":""}]
["20.1.1.","Tyrimams: Feritinas (B12)"]
["20.1.2.","3 lygiai, 3 vnt. rinkinyje"]
[null,null,null,null,"Suma be PVM",{"$f":"IF((COUNT(C294:C296)<>COUNT(F294:F296)),\"\", SUM(F294:F296))","v":""},{"$f":"IF((COUNT(C294:C296)<>COUNT(F294:F296)),\"Neužpildytos visų objektų kainos\", \"\")","v":"Neužpildytos visų objektų kainos"}]
[null,null,null,null,"PVM suma"]
[null,null,null,null,"Suma su PVM",{"$f":"IF(ISBLANK(F298), \"\", SUM(F297:F298))","v":""}]
[]
[]
[]
["21. DALIS","ELEKTROLITŲ REFERENTINIS SKYSTIS 6 ML ANALIZATORIUI VITROS 5600"]
[]
["Tiekėjo pasiūlymas:"]
["Nr.","Pavadinimas","Maksimalus kiekis","Mato vienetas","Vieneto įkainis be PVM, Eur","Suma be PVM, Eur","Siūlomos prekės modelis ir modelio modifikacija (jei taikoma)","Siūlomų parametrų reikšmės"]
["21.","Elektrolitų referentinis skystis 6 ml analizatoriui Vitros 5600"]
["21.1.","Elektrolitų referentinis skystis 6 ml analizatoriui Vitros 5600",200,"vnt.",null,{"$f":"IF(ISBLANK(E308),\"\", PRODUCT(C308,E308))","v":""}]
["21.1.1.","supakuota po 1 vnt."]
[null,null,null,null,"Suma be PVM",{"$f":"IF((COUNT(C308:C309)<>COUNT(F308:F309)),\"\", SUM(F308:F309))","v":""},{"$f":"IF((COUNT(C308:C309)<>COUNT(F308:F309)),\"Neužpildytos visų objektų kainos\", \"\")","v":"Neužpildytos visų objektų kainos"}]
[null,null,null,null,"PVM suma"]
[null,null,null,null,"Suma su PVM",{"$f":"IF(ISBLANK(F311), \"\", SUM(F310:F311))","v":""}]
[]
[]
[]
["22. DALIS","SIGNALINIS REAGENTAS ANALIZATORIUI VITROS 5600"]
[]
["Tiekėjo pasiūlymas:"]
["Nr.","Pavadinimas","Maksimalus kiekis","Mato vienetas","Vieneto įkainis be PVM, Eur","Suma be PVM, Eur","Siūlomos prekės modelis ir modelio modifikacija (jei taikoma)","Siūlomų parametrų reikšmės"]
["22.","Signalinis reagentas analizatoriui Vitros 5600"]
["22.1.","Signalinis reagentas analizatoriui Vitros 5600",100,"pakuot.",null,{"$f":"IF(ISBLANK(E321),\"\", PRODUCT(C321,E321))","v":""}]
["22.1.1.","supakuota 2x200"]
[null,null,null,null,"Suma be PVM",{"$f":"IF((COUNT(C321:C322)<>COUNT(F321:F322)),\"\", SUM(F321:F322))","v":""},{"$f":"IF((COUNT(C321:C322)<>COUNT(F321:F322)),\"Neužpildytos visų objektų kainos\", \"\")","v":"Neužpildytos visų objektų kainos"}]
[null,null,null,null,"PVM suma"]
[null,null,null,null,"Suma su PVM",{"$f":"IF(ISBLANK(F324), \"\", SUM(F323:F324))","v":""}]
[]
[]
[]
["23. DALIS","FS KIUVETEĖS ANALIZATORIUI VITROS 5600"]
[]
["Tiekėjo pasiūlymas:"]
["Nr.","Pavadinimas","Maksimalus kiekis","Mato vienetas","Vieneto įkainis be PVM, Eur","Suma be PVM, Eur","Siūlomos prekės modelis ir modelio modifikacija (jei taikoma)","Siūlomų parametrų reikšmės"]
["23.","FS kiuveteės analizatoriui Vitros 5600"]
["23.1.","FS kiuveteės analizatoriui Vitros 5600",5,"pakuot.",null,{"$f":"IF(ISBLANK(E334),\"\", PRODUCT(C334,E334))","v":""}]
["23.1.1.","pakuotėje 1500 vnt."]
[null,null,null,null,"Suma be PVM",{"$f":"IF((COUNT(C334:C335)<>COUNT(F334:F335)),\"\", SUM(F334:F335))","v":""},{"$f":"IF((COUNT(C334:C335)<>COUNT(F334:F335)),\"Neužpildytos visų objektų kainos\", \"\")","v":"Neužpildytos visų objektų kainos"}]
[null,null,null,null,"PVM suma"]
[null,null,null,null,"Suma su PVM",{"$f":"IF(ISBLANK(F337), \"\", SUM(F336:F337))","v":""}]
[]
[]
[]
["24. DALIS","FS MICROTIP ANTGALIAI ANALIZATORIUI VITROS 5600"]
[]
["Tiekėjo pasiūlymas:"]
["Nr.","Pavadinimas","Maksimalus kiekis","Mato vienetas","Vieneto įkainis be PVM, Eur","Suma be PVM, Eur","Siūlomos prekės modelis ir modelio modifikacija (jei taikoma)","Siūlomų parametrų reikšmės"]
["24.","FS MicroTip antgaliai analizatoriui Vitros 5600"]
["24.1.","FS MicroTip antgaliai analizatoriui Vitros 5600",50,"pakuot.",null,{"$f":"IF(ISBLANK(E347),\"\", PRODUCT(C347,E347))","v":""}]
["24.1.1.","pakuotėje 128 vnt."]
[null,null,null,null,"Suma be PVM",{"$f":"IF((COUNT(C347:C348)<>COUNT(F347:F348)),\"\", SUM(F347:F348))","v":""},{"$f":"IF((COUNT(C347:C348)<>COUNT(F347:F348)),\"Neužpildytos visų objektų kainos\", \"\")","v":"Neužpildytos visų objektų kainos"}]
[null,null,null,null,"PVM suma"]
[null,null,null,null,"Suma su PVM",{"$f":"IF(ISBLANK(F350), \"\", SUM(F349:F350))","v":""}]
[]
[]
[]
["25. DALIS","FS DRĖGMĖS STABILIZATORIUS ANALIZATORIUI VITROS 5600"]
[]
["Tiekėjo pasiūlymas:"]
["Nr.","Pavadinimas","Maksimalus kiekis","Mato vienetas","Vieneto įkainis be PVM, Eur","Suma be PVM, Eur","Siūlomos prekės modelis ir modelio modifikacija (jei taikoma)","Siūlomų parametrų reikšmės"]
["25.","FS drėgmės stabilizatorius analizatoriui Vitros 5600"]
["25.1.","FS drėgmės stabilizatorius analizatoriui Vitros 5600",10,"pakuot.",null,{"$f":"IF(ISBLANK(E360),\"\", PRODUCT(C360,E360))","v":""}]
["25.1.1.","pakuotėje 6 vnt."]
[null,null,null,null,"Suma be PVM",{"$f":"IF((COUNT(C360:C361)<>COUNT(F360:F361)),\"\", SUM(F360:F361))","v":""},{"$f":"IF((COUNT(C360:C361)<>COUNT(F360:F361)),\"Neužpildytos visų objektų kainos\", \"\")","v":"Neužpildytos visų objektų kainos"}]
[null,null,null,null,"PVM suma"]
[null,null,null,null,"Suma su PVM",{"$f":"IF(ISBLANK(F363), \"\", SUM(F362:F363))","v":""}]
[]
[]
[]
["26. DALIS","TERMOPOPIERIUS 110X12X45MM"]
[]
["Tiekėjo pasiūlymas:"]
["Nr.","Pavadinimas","Maksimalus kiekis","Mato vienetas","Vieneto įkainis be PVM, Eur","Suma be PVM, Eur","Siūlomos prekės modelis ir modelio modifikacija (jei taikoma)","Siūlomų parametrų reikšmės"]
["26.","Termopopierius 110x12x45mm"]
["26.1.","termopopierius 110x12x45mm",96,"vnt.",null,{"$f":"IF(ISBLANK(E373),\"\", PRODUCT(C373,E373))","v":""}]
[null,null,null,null,"Suma be PVM",{"$f":"IF(F373=\"\",\"\",SUM(F373:F373))","v":""},{"$f":"IF(F373=\"\",\"Neužpildytos visos objektų kainos\",\"\")","v":"Neužpildytos visos objektų kainos"}]
[null,null,null,null,"PVM suma"]
[null,null,null,null,"Suma su PVM",{"$f":"IF(ISBLANK(F375), \"\", SUM(F374:F375))","v":""}]
[]
[]
[]
["27. DALIS","FERITINO REAGENTAS ANALIZATORIUI VITROS 5600"]
[]
["Tiekėjo pasiūlymas:"]
["Nr.","Pavadinimas","Maksimalus kiekis","Mato vienetas","Vieneto įkainis be PVM, Eur","Suma be PVM, Eur","Siūlomos prekės modelis ir modelio modifikacija (jei taikoma)","Siūlomų parametrų reikšmės"]
["27.","Feritino reagentas analizatoriui Vitros 5600"]
["27.1.","Feritino reagentas analizatoriui Vitros 5600",3000,"tyr.",null,{"$f":"IF(ISBLANK(E385),\"\", PRODUCT(C385,E385))","v":""}]
["27.1.1.","Lotospecifinė kalibracija. . "]
["27.1.2.","Kalibracijos stabilumas ne mažiau 4 savaitės. "]
["27.1.3.","Reagento stabilumas analizatoriuje ne mažiau 7 savaitės. "]
["27.1.4.","Turi turėti galimybę aukštą mėginį automatizuotai praskiesti iki 10 kartų"]
["27.1.5.","Reagento galiojimas ne trumpesnis kaip 6 mėn nuo gavimo datos"]
["27.1.6.","Reagentai pilnai paruošti darbui (nereikia gaminti, skiesti)"]
[null,null,null,null,"Suma be PVM",{"$f":"IF((COUNT(C385:C391)<>COUNT(F385:F391)),\"\", SUM(F385:F391))","v":""},{"$f":"IF((COUNT(C385:C391)<>COUNT(F385:F391)),\"Neužpildytos visų objektų kainos\", \"\")","v":"Neužpildytos visų objektų kainos"}]
[null,null,null,null,"PVM suma"]
[null,null,null,null,"Suma su PVM",{"$f":"IF(ISBLANK(F393), \"\", SUM(F392:F393))","v":""}]
[]
[]
[]
["28. DALIS","GELEŽIES (FE) REAGENTAS ANALIZATORIUI VITROS 5600"]
[]
["Tiekėjo pasiūlymas:"]
["Nr.","Pavadinimas","Maksimalus kiekis","Mato vienetas","Vieneto įkainis be PVM, Eur","Suma be PVM, Eur","Siūlomos prekės modelis ir modelio modifikacija (jei taikoma)","Siūlomų parametrų reikšmės"]
["28.","Geležies (Fe) reagentas analizatoriui Vitros 5600"]
["28.1.","Geležies (Fe) reagentas analizatoriui Vitros 5600",6000,"tyr.",null,{"$f":"IF(ISBLANK(E403),\"\", PRODUCT(C403,E403))","v":""}]
["28.1.1.","Reagento galiojimas ne trumpesnis kaip 6 mėn nuo gavimo datos"]
["28.1.2.","Reagentai pilnai paruošti darbui (nereikia gaminti, skiesti)"]
[null,null,null,null,"Suma be PVM",{"$f":"IF((COUNT(C403:C405)<>COUNT(F403:F405)),\"\", SUM(F403:F405))","v":""},{"$f":"IF((COUNT(C403:C405)<>COUNT(F403:F405)),\"Neužpildytos visų objektų kainos\", \"\")","v":"Neužpildytos visų objektų kainos"}]
[null,null,null,null,"PVM suma"]
[null,null,null,null,"Suma su PVM",{"$f":"IF(ISBLANK(F407), \"\", SUM(F406:F407))","v":""}]
[]
[]
[]
["29. DALIS","ASPARTATAMINOTRANSFERAZĖS  (AST/GOT) REAGENTAS ANALIZATORIUI VITROS 5600"]
[]
["Tiekėjo pasiūlymas:"]
["Nr.","Pavadinimas","Maksimalus kiekis","Mato vienetas","Vieneto įkainis be PVM, Eur","Suma be PVM, Eur","Siūlomos prekės modelis ir modelio modifikacija (jei taikoma)","Siūlomų parametrų reikšmės"]
["29.","Aspartataminotransferazės  (AST/GOT) reagentas analizatoriui Vitros 5600"]
["29.1.","Aspartataminotransferazės (AST/GOT) reagentas analizatoriui Vitros 5600",12000,"tyr.",null,{"$f":"IF(ISBLANK(E417),\"\", PRODUCT(C417,E417))","v":""}]
["29.1.1.","Reagento galiojimas ne trumpesnis kaip 6 mėn nuo gavimo datos"]
["29.1.2.","Reagentai pilnai paruošti darbui (nereikia gaminti, skiesti)"]
[null,null,null,null,"Suma be PVM",{"$f":"IF((COUNT(C417:C419)<>COUNT(F417:F419)),\"\", SUM(F417:F419))","v":""},{"$f":"IF((COUNT(C417:C419)<>COUNT(F417:F419)),\"Neužpildytos visų objektų kainos\", \"\")","v":"Neužpildytos visų objektų kainos"}]
[null,null,null,null,"PVM suma"]
[null,null,null,null,"Suma su PVM",{"$f":"IF(ISBLANK(F421), \"\", SUM(F420:F421))","v":""}]
[]
[]
[]
["30. DALIS","ALANINAMINOTRANSFERAZĖS (ALT/GPT) REAGENTAS ANALIZATORIUI VITROS 5600"]
[]
["Tiekėjo pasiūlymas:"]
["Nr.","Pavadinimas","Maksimalus kiekis","Mato vienetas","Vieneto įkainis be PVM, Eur","Suma be PVM, Eur","Siūlomos prekės modelis ir modelio modifikacija (jei taikoma)","Siūlomų parametrų reikšmės"]
["30.","Alaninaminotransferazės (ALT/GPT) reagentas analizatoriui Vitros 5600"]
["30.1.","Alaninaminotransferazės (ALT/GPT) reagentas analizatoriui Vitros 5600",15000,"tyr.",null,{"$f":"IF(ISBLANK(E431),\"\", PRODUCT(C431,E431))","v":""}]
["30.1.1.","Reagento galiojimas ne trumpesnis kaip 6 mėn nuo gavimo datos"]
["30.1.2.","Reagentai pilnai paruošti darbui (nereikia gaminti, skiesti)"]
[null,null,null,null,"Suma be PVM",{"$f":"IF((COUNT(C431:C433)<>COUNT(F431:F433)),\"\", SUM(F431:F433))","v":""},{"$f":"IF((COUNT(C431:C433)<>COUNT(F431:F433)),\"Neužpildytos visų objektų kainos\", \"\")","v":"Neužpildytos visų objektų kainos"}]
[null,null,null,null,"PVM suma"]
[null,null,null,null,"Suma su PVM",{"$f":"IF(ISBLANK(F435), \"\", SUM(F434:F435))","v":""}]
[]
[]
[]
["31. DALIS","TROPONINO I DIDELIO JAUTRUMO REAGENTAS ANALIZATORIUI VITROS 5600"]
[]
["Tiekėjo pasiūlymas:"]
["Nr.","Pavadinimas","Maksimalus kiekis","Mato vienetas","Vieneto įkainis be PVM, Eur","Suma be PVM, Eur","Siūlomos prekės modelis ir modelio modifikacija (jei taikoma)","Siūlomų parametrų reikšmės"]
["31.","Troponino I didelio jautrumo reagentas analizatoriui Vitros 5600"]
["31.1.","Troponino I didelio jautrumo reagentas analizatoriui Vitros 5600",10000,"tyr.",null,{"$f":"IF(ISBLANK(E445),\"\", PRODUCT(C445,E445))","v":""}]
["31.1.1.","Reagento galiojimas ne trumpesnis kaip 6 mėn nuo gavimo datos"]
["31.1.2.","Reagentai pilnai paruošti darbui (nereikia gaminti, skiesti)"]
[null,null,null,null,"Suma be PVM",{"$f":"IF((COUNT(C445:C447)<>COUNT(F445:F447)),\"\", SUM(F445:F447))","v":""},{"$f":"IF((COUNT(C445:C447)<>COUNT(F445:F447)),\"Neužpildytos visų objektų kainos\", \"\")","v":"Neužpildytos visų objektų kainos"}]
[null,null,null,null,"PVM suma"]
[null,null,null,null,"Suma su PVM",{"$f":"IF(ISBLANK(F449), \"\", SUM(F448:F449))","v":""}]
[]
[]
[]
["32. DALIS","FOSFORO (PHOS) REAGENTAS ANALIZATORIUI VITROS 5600"]
[]
["Tiekėjo pasiūlymas:"]
["Nr.","Pavadinimas","Maksimalus kiekis","Mato vienetas","Vieneto įkainis be PVM, Eur","Suma be PVM, Eur","Siūlomos prekės modelis ir modelio modifikacija (jei taikoma)","Siūlomų parametrų reikšmės"]
["32.","Fosforo (PHOS) reagentas analizatoriui Vitros 5600"]
["32.1.","Fosforo (PHOS) reagentas analizatoriui Vitros 5600",600,"tyr.",null,{"$f":"IF(ISBLANK(E459),\"\", PRODUCT(C459,E459))","v":""}]
["32.1.1.","Reagento galiojimas ne trumpesnis kaip 6 mėn nuo gavimo datos"]
["32.1.2.","Reagentai pilnai paruošti darbui (nereikia gaminti, skiesti)"]
[null,null,null,null,"Suma be PVM",{"$f":"IF((COUNT(C459:C461)<>COUNT(F459:F461)),\"\", SUM(F459:F461))","v":""},{"$f":"IF((COUNT(C459:C461)<>COUNT(F459:F461)),\"Neužpildytos visų objektų kainos\", \"\")","v":"Neužpildytos visų objektų kainos"}]
[null,null,null,null,"PVM suma"]
[null,null,null,null,"Suma su PVM",{"$f":"IF(ISBLANK(F463), \"\", SUM(F462:F463))","v":""}]
[]
[]
[]
["33. DALIS","LAKTATDEHIDROGENAZĖS (LDH) REAGENTAS ANALIZATORIUI VITROS 5600"]
[]
["Tiekėjo pasiūlymas:"]
["Nr.","Pavadinimas","Maksimalus kiekis","Mato vienetas","Vieneto įkainis be PVM, Eur","Suma be PVM, Eur","Siūlomos prekės modelis ir modelio modifikacija (jei taikoma)","Siūlomų parametrų reikšmės"]
["33.","Laktatdehidrogenazės (LDH) reagentas analizatoriui Vitros 5600"]
["33.1.","Laktatdehidrogenazės (LDH) reagentas analizatoriui Vitros 5600",5000,"tyr.",null,{"$f":"IF(ISBLANK(E473),\"\", PRODUCT(C473,E473))","v":""}]
["33.1.1.","Reagento galiojimas ne trumpesnis kaip 6 mėn nuo gavimo datos"]
["33.1.2.","Reagentai pilnai paruošti darbui (nereikia gaminti, skiesti)"]
[null,null,null,null,"Suma be PVM",{"$f":"IF((COUNT(C473:C475)<>COUNT(F473:F475)),\"\", SUM(F473:F475))","v":""},{"$f":"IF((COUNT(C473:C475)<>COUNT(F473:F475)),\"Neužpildytos visų objektų kainos\", \"\")","v":"Neužpildytos visų objektų kainos"}]
[null,null,null,null,"PVM suma"]
[null,null,null,null,"Suma su PVM",{"$f":"IF(ISBLANK(F477), \"\", SUM(F476:F477))","v":""}]
[]
[]
[]
["34. DALIS","CHROMAGARAS ŠLAPIMO T. INFEKCIJOS SUKĖLĖJAMS"]
[]
["Tiekėjo pasiūlymas:"]
["Nr.","Pavadinimas","Maksimalus kiekis","Mato vienetas","Vieneto įkainis be PVM, Eur","Suma be PVM, Eur","Siūlomos prekės modelis ir modelio modifikacija (jei taikoma)","Siūlomų parametrų reikšmės"]
["34.","Chromagaras šlapimo t. infekcijos sukėlėjams"]
["34.1.","Chromagaras šlapimo t. infekcijos sukėlėjams",21000,"vnt.",null,{"$f":"IF(ISBLANK(E487),\"\", PRODUCT(C487,E487))","v":""}]
["34.1.1.","KES grupės bakterijų kokybinis spalvinis skirtumas. "]
["34.1.2.","Galutinis vertinimas po 24 val/ "]
["34.1.3.","Stabdomas Proteus šliaužimas"]
[null,null,null,null,"Suma be PVM",{"$f":"IF((COUNT(C487:C490)<>COUNT(F487:F490)),\"\", SUM(F487:F490))","v":""},{"$f":"IF((COUNT(C487:C490)<>COUNT(F487:F490)),\"Neužpildytos visų objektų kainos\", \"\")","v":"Neužpildytos visų objektų kainos"}]
[null,null,null,null,"PVM suma"]
[null,null,null,null,"Suma su PVM",{"$f":"IF(ISBLANK(F492), \"\", SUM(F491:F492))","v":""}]
[]
[]
[]
["35. DALIS","IDENTIFIKAVIMO DISKAI NAUDOJAMI BE SPECIALIŲ PAPILDOMŲ PRIEMONIŲ: (OKSIDAZĖ)"]
[]
["Tiekėjo pasiūlymas:"]
["Nr.","Pavadinimas","Maksimalus kiekis","Mato vienetas","Vieneto įkainis be PVM, Eur","Suma be PVM, Eur","Siūlomos prekės modelis ir modelio modifikacija (jei taikoma)","Siūlomų parametrų reikšmės"]
["35.","Identifikavimo diskai naudojami be specialių papildomų priemonių: (oksidazė)"]
["35.1.","Identifikavimo diskai naudojami be specialių papildomų priemonių: (oksidazė)",2000,"vnt.",null,{"$f":"IF(ISBLANK(E502),\"\", PRODUCT(C502,E502))","v":""}]
["35.1.1.","Diferencinis testas"]
[null,null,null,null,"Suma be PVM",{"$f":"IF((COUNT(C502:C503)<>COUNT(F502:F503)),\"\", SUM(F502:F503))","v":""},{"$f":"IF((COUNT(C502:C503)<>COUNT(F502:F503)),\"Neužpildytos visų objektų kainos\", \"\")","v":"Neužpildytos visų objektų kainos"}]
[null,null,null,null,"PVM suma"]
[null,null,null,null,"Suma su PVM",{"$f":"IF(ISBLANK(F505), \"\", SUM(F504:F505))","v":""}]
[]
[]
[]
["36. DALIS","ANTISERUMAI SALMONELLA IR SHIGELLA SEROTIPAVIMUI (VIENO GAMINTOJO VISAI PIRKIMO DALIAI. BAKTERIJŲ SEROTIPAVIMUI AGLIUTINACIJOS METODU)"]
[]
["Tiekėjo pasiūlymas:"]
["Nr.","Pavadinimas","Maksimalus kiekis","Mato vienetas","Vieneto įkainis be PVM, Eur","Suma be PVM, Eur","Siūlomos prekės modelis ir modelio modifikacija (jei taikoma)","Siūlomų parametrų reikšmės"]
["36.","Antiserumai Salmonella ir Shigella serotipavimui (Vieno gamintojo visai pirkimo daliai. Bakterijų serotipavimui agliutinacijos metodu)"]
["36.1.","Salmonelių H d ",40,"vnt.",null,{"$f":"IF(ISBLANK(E515),\"\", PRODUCT(C515,E515))","v":""}]
["36.1.1.","Salmonella typhi 1antigeninės struktūros nustatymui."]
["36.2.","Shigella sonnei polivalentinis antiserumas",40,"vnt.",null,{"$f":"IF(ISBLANK(E517),\"\", PRODUCT(C517,E517))","v":""}]
["36.2.1.","Shigella antigeninės struktūros nustatymui. "]
[null,null,null,null,"Suma be PVM",{"$f":"IF((COUNT(C515:C518)<>COUNT(F515:F518)),\"\", SUM(F515:F518))","v":""},{"$f":"IF((COUNT(C515:C518)<>COUNT(F515:F518)),\"Neužpildytos visų objektų kainos\", \"\")","v":"Neužpildytos visų objektų kainos"}]
[null,null,null,null,"PVM suma"]
[null,null,null,null,"Suma su PVM",{"$f":"IF(ISBLANK(F520), \"\", SUM(F519:F520))","v":""}]
[]
[]
[]
["37. DALIS","NESPECIFINIŲ PNEUMONIJŲ SUKĖLĖJŲ DIAGNOSTIKA "]
[]
["Tiekėjo pasiūlymas:"]
["Nr.","Pavadinimas","Maksimalus kiekis","Mato vienetas","Vieneto įkainis be PVM, Eur","Suma be PVM, Eur","Siūlomos prekės modelis ir modelio modifikacija (jei taikoma)","Siūlomų parametrų reikšmės"]
["37.","Nespecifinių pneumonijų sukėlėjų diagnostika "]
["37.1.","Anti Mycoplasma pneum. ",1920,"tyr.",null,{"$f":"IF(ISBLANK(E530),\"\", PRODUCT(C530,E530))","v":""}]
["37.1.1.","IgM ELISA reakcija 96 šulinėliai plokštelėje. "]
["37.1.2.","Kietos fazės pagrindas išgrynintas MP antigenas (FH štamas su papildomu P1 ir HMN1 168 kDa)"]
["37.1.3.","Plokštelių juostelės dalijamos atskirais šulinėliais (pusiau automat. spektrofotometras )"]
["37.2.","Anti Chlamydia pneum.. ",1920,"tyr.",null,{"$f":"IF(ISBLANK(E534),\"\", PRODUCT(C534,E534))","v":""}]
["37.2.1.","IgM ELISA reakcija 96 šulinėliai plokštelėje. "]
["37.2.2.","Kietos fazės pagrindas, grupei specifinis LPS "]
["37.2.3.","Plokštelių juostelės dalijamos atskirais šulinėliais (pusiau automat. spektrofotometras )"]
[null,null,null,null,"Suma be PVM",{"$f":"IF((COUNT(C530:C537)<>COUNT(F530:F537)),\"\", SUM(F530:F537))","v":""},{"$f":"IF((COUNT(C530:C537)<>COUNT(F530:F537)),\"Neužpildytos visų objektų kainos\", \"\")","v":"Neužpildytos visų objektų kainos"}]
[null,null,null,null,"PVM suma"]
[null,null,null,null,"Suma su PVM",{"$f":"IF(ISBLANK(F539), \"\", SUM(F538:F539))","v":""}]
[]
[]
[]
["38. DALIS","KONUSINIAI CELIULIOZINIAI KAMŠČIAI "]
[]
["Tiekėjo pasiūlymas:"]
["Nr.","Pavadinimas","Maksimalus kiekis","Mato vienetas","Vieneto įkainis be PVM, Eur","Suma be PVM, Eur","Siūlomos prekės modelis ir modelio modifikacija (jei taikoma)","Siūlomų parametrų reikšmės"]
["38.","Konusiniai celiulioziniai kamščiai "]
["38.1.","Konusiniai celiulioziniai kamščiai",30000,"vnt.",null,{"$f":"IF(ISBLANK(E549),\"\", PRODUCT(C549,E549))","v":""}]
["38.1.1.","Æ16 mm. mėgintuvėliams"]
[null,null,null,null,"Suma be PVM",{"$f":"IF((COUNT(C549:C550)<>COUNT(F549:F550)),\"\", SUM(F549:F550))","v":""},{"$f":"IF((COUNT(C549:C550)<>COUNT(F549:F550)),\"Neužpildytos visų objektų kainos\", \"\")","v":"Neužpildytos visų objektų kainos"}]
[null,null,null,null,"PVM suma"]
[null,null,null,null,"Suma su PVM",{"$f":"IF(ISBLANK(F552), \"\", SUM(F551:F552))","v":""}]
[]
[]
[]
["39. DALIS"," MAIŠYMO LAZDELĖS"]
[]
["Tiekėjo pasiūlymas:"]
["Nr.","Pavadinimas","Maksimalus kiekis","Mato vienetas","Vieneto įkainis be PVM, Eur","Suma be PVM, Eur","Siūlomos prekės modelis ir modelio modifikacija (jei taikoma)","Siūlomų parametrų reikšmės"]
["39."," Maišymo lazdelės"]
["39.1."," Maišymo lazdelės",700,"vnt.",null,{"$f":"IF(ISBLANK(E562),\"\", PRODUCT(C562,E562))","v":""}]
["39.1.1.","Vienkartinės"]
["39.1.2.","Plastikinės"]
[null,null,null,null,"Suma be PVM",{"$f":"IF((COUNT(C562:C564)<>COUNT(F562:F564)),\"\", SUM(F562:F564))","v":""},{"$f":"IF((COUNT(C562:C564)<>COUNT(F562:F564)),\"Neužpildytos visų objektų kainos\", \"\")","v":"Neužpildytos visų objektų kainos"}]
[null,null,null,null,"PVM suma"]
[null,null,null,null,"Suma su PVM",{"$f":"IF(ISBLANK(F566), \"\", SUM(F565:F566))","v":""}]
[]
[]
[]
["40. DALIS"," KILPELĖS "]
[]
["Tiekėjo pasiūlymas:"]
["Nr.","Pavadinimas","Maksimalus kiekis","Mato vienetas","Vieneto įkainis be PVM, Eur","Suma be PVM, Eur","Siūlomos prekės modelis ir modelio modifikacija (jei taikoma)","Siūlomų parametrų reikšmės"]
["40."," Kilpelės "]
["40.1."," Kilpelės ",120000,"vnt.",null,{"$f":"IF(ISBLANK(E576),\"\", PRODUCT(C576,E576))","v":""}]
["40.1.1.","Sterilios "]
["40.1.2."," 1,0 μl"]
[null,null,null,null,"Suma be PVM",{"$f":"IF((COUNT(C576:C578)<>COUNT(F576:F578)),\"\", SUM(F576:F578))","v":""},{"$f":"IF((COUNT(C576:C578)<>COUNT(F576:F578)),\"Neužpildytos visų objektų kainos\", \"\")","v":"Neužpildytos visų objektų kainos"}]
[null,null,null,null,"PVM suma"]
[null,null,null,null,"Suma su PVM",{"$f":"IF(ISBLANK(F580), \"\", SUM(F579:F580))","v":""}]
[]
[]
[]
["41. DALIS","MIKROVETĖS HEMOCUE GLUCOSE 201 RT GLIUKOZĖS MATUOKLIUI"]
[]
["Tiekėjo pasiūlymas:"]
["Nr.","Pavadinimas","Maksimalus kiekis","Mato vienetas","Vieneto įkainis be PVM, Eur","Suma be PVM, Eur","Siūlomos prekės modelis ir modelio modifikacija (jei taikoma)","Siūlomų parametrų reikšmės"]
["41.","Mikrovetės HemoCue Glucose 201 RT gliukozės matuokliui"]
["41.1.","Mikrovetės HemoCue Glucose 201 RT gliukozės matuokliui",3000,"tyr.",null,{"$f":"IF(ISBLANK(E590),\"\", PRODUCT(C590,E590))","v":""}]
["41.1.1.","Pageidautinas išfasavimas 4x25"]
[null,null,null,null,"Suma be PVM",{"$f":"IF((COUNT(C590:C591)<>COUNT(F590:F591)),\"\", SUM(F590:F591))","v":""},{"$f":"IF((COUNT(C590:C591)<>COUNT(F590:F591)),\"Neužpildytos visų objektų kainos\", \"\")","v":"Neužpildytos visų objektų kainos"}]
[null,null,null,null,"PVM suma"]
[null,null,null,null,"Suma su PVM",{"$f":"IF(ISBLANK(F593), \"\", SUM(F592:F593))","v":""}]
[]
[]
[]
["42. DALIS","ADATĖLĖS SAUGIAM HEMATOLOHINIŲ TEPINĖLIŲ PARUOŠIMUI "]
[]
["Tiekėjo pasiūlymas:"]
["Nr.","Pavadinimas","Maksimalus kiekis","Mato vienetas","Vieneto įkainis be PVM, Eur","Suma be PVM, Eur","Siūlomos prekės modelis ir modelio modifikacija (jei taikoma)","Siūlomų parametrų reikšmės"]
["42.","Adatėlės saugiam hematolohinių tepinėlių paruošimui "]
["42.1.","Adatėlės saugiam hematolohinių tepinėlių paruošimui ",1000,"vnt.",0.08,{"$f":"IF(ISBLANK(E603),\"\", PRODUCT(C603,E603))","v":80},"Vacudrop, 458815"]
[null,null,null,null,"Suma be PVM",{"$f":"IF(F603=\"\",\"\",SUM(F603:F603))","v":80},{"$f":"IF(F603=\"\",\"Neužpildytos visos objektų kainos\",\"\")","v":""}]
[null,null,null,null,"PVM suma",4]
[null,null,null,null,"Suma su PVM",{"$f":"IF(ISBLANK(F605), \"\", SUM(F604:F605))","v":84}]
[]
[]
[]
["43. DALIS","REAGENTAI D-DIMERŲ KONCENTRACIJOS NUSTATYMUI ANALIZATORIUMI STA COMPACT"]
[]
["Tiekėjo pasiūlymas:"]
["Nr.","Pavadinimas","Maksimalus kiekis","Mato vienetas","Vieneto įkainis be PVM, Eur","Suma be PVM, Eur","Siūlomos prekės modelis ir modelio modifikacija (jei taikoma)","Siūlomų parametrų reikšmės"]
["43.","Reagentai D-dimerų koncentracijos nustatymui analizatoriumi STA Compact"]
["43.1.","Reagentai D-dimerų koncentracijos nustatymui analizatoriumi STA Compact",12000,"tyr.",null,{"$f":"IF(ISBLANK(E615),\"\", PRODUCT(C615,E615))","v":""}]
["43.1.1.","Imunoturbidimetrinis metodas, "]
["43.1.2.","Reagentas turi būti ne prastesnės klinikinės kokybės negu šiuo metu naudojamas gydymo įstaigoje: nejautrus heparinui iki 1IU/ml."]
["43.1.3.","Reagentas sukalibruotas (kalibracinė kreivė įkeliama naudojant brūkšninį kodą)"]
["43.1.4.","Darbinio tirpalo stabilumas analizatoriuje ≥ 14 d. "]
["43.1.5.","Jautrumas ≥97% "]
["43.1.6.","Specifiškumas ≥75,5%, NPV≥99,7%."]
[null,null,null,null,"Suma be PVM",{"$f":"IF((COUNT(C615:C621)<>COUNT(F615:F621)),\"\", SUM(F615:F621))","v":""},{"$f":"IF((COUNT(C615:C621)<>COUNT(F615:F621)),\"Neužpildytos visų objektų kainos\", \"\")","v":"Neužpildytos visų objektų kainos"}]
[null,null,null,null,"PVM suma"]
[null,null,null,null,"Suma su PVM",{"$f":"IF(ISBLANK(F623), \"\", SUM(F622:F623))","v":""}]
[]
[]
[]
["44. DALIS","REAGENTAI KRAUJO DUJŲ, ELEKTROLITŲ, METABOLITŲ  NUSTATYMUI SU PRIETAISU PANAUDAI"]
[]
["Tiekėjo pasiūlymas:"]
["Nr.","Pavadinimas","Maksimalus kiekis","Mato vienetas","Vieneto įkainis be PVM, Eur","Suma be PVM, Eur","Siūlomos prekės modelis ir modelio modifikacija (jei taikoma)","Siūlomų parametrų reikšmės"]
["44.","Reagentai kraujo dujų, elektrolitų, metabolitų  nustatymui su prietaisu panaudai"]
["44.1.","Reagentai kraujo dujų, elektrolitų, metabolitų nustatymui su prietaisu panaudai",1200,"tyr.",null,{"$f":"IF(ISBLANK(E633),\"\", PRODUCT(C633,E633))","v":""}]
["44.1.1.","Matuojami parametrai ne mažiau kaip pH , pCO2 , pO2, Na, K, Cl, Ca, Glu, Lac"]
["44.1.2.","Pavienių tyrimų atlikimo galimybė"]
["44.1.3.","Tyrimų kasetėje ne daugiau kaip 30 tyrimų"]
["44.1.4.","Mėginio tūris ne daugiau kaip 150 mikrolitrų"]
["44.1.5.","Ne mažiau kaip 3 lygių kokybės kontrolė"]
["44.1.6.","Panaudai būtini 2 prietaisai"]
["44.1.7.","Prietaisas nešiojamas, galimybė tyrimus atlikti prie ligonio lovos"]
["44.1.8.","Reagentų galiojimas – apie12 mėn. nuo pagaminimo datos."]
[null,null,null,null,"Suma be PVM",{"$f":"IF((COUNT(C633:C641)<>COUNT(F633:F641)),\"\", SUM(F633:F641))","v":""},{"$f":"IF((COUNT(C633:C641)<>COUNT(F633:F641)),\"Neužpildytos visų objektų kainos\", \"\")","v":"Neužpildytos visų objektų kainos"}]
[null,null,null,null,"PVM suma"]
[null,null,null,null,"Suma su PVM",{"$f":"IF(ISBLANK(F643), \"\", SUM(F642:F643))","v":""}]
[]
[]
[]
["45. DALIS","REAGENTAI, MEDŽIAGOS BEI PAPILDOMOS PRIEMONĖS KIEKYBINIAM ALERGENŲ NUSTATYMO IMUNOLOGINIAM ANALIZATORIUI  PANAUDAI"]
[]
["Tiekėjo pasiūlymas:"]
["Nr.","Pavadinimas","Maksimalus kiekis","Mato vienetas","Vieneto įkainis be PVM, Eur","Suma be PVM, Eur","Siūlomos prekės modelis ir modelio modifikacija (jei taikoma)","Siūlomų parametrų reikšmės"]
["45.","Reagentai, medžiagos bei papildomos priemonės kiekybiniam alergenų nustatymo imunologiniam analizatoriui  panaudai"]
["45.1.","Įkvepiamų alergenų (specifinių imunoglobulinų E ( (IgE)) panelė",70,"tyr.",null,{"$f":"IF(ISBLANK(E653),\"\", PRODUCT(C653,E653))","v":""}]
["45.1.1.","Viena diagnostine juostele galima identifikuoti bent 20 skirtingų alergenų"]
["45.1.2.","Ne mažiau kaip 7 klasių vertinimo skalė;"]
["45.1.3.","Juostelės turi būti kalibruotos pagal PSO standartą – ne mažiau kaip į taškų standartinė kreivė kiekybinių rezultatų nustatymui. Juostelės turi turėti teigiamą kontrolę;"]
["45.1.4.","Juostelės turi turėti kryžminio reaktyvumo angliavandenių determinantų (CCD) juostą, kad būtų galima įvertinti CCD antikūnų buvimą serume arba plazmoje;"]
["45.2.","Maisto alergenų (specifinių imunoglobulinų E ( (IgE)) panelė",70,"tyr.",null,{"$f":"IF(ISBLANK(E658),\"\", PRODUCT(C658,E658))","v":""}]
["45.2.1.","Viena diagnostine juostele galima identifikuoti bent 20 skirtingų alergenų"]
["45.2.2.","Ne mažiau kaip 7 klasių vertinimo skalė;"]
["45.2.3.","Juostelės turi būti kalibruotos pagal PSO standartą – ne mažiau kaip į taškų standartinė kreivė kiekybinių rezultatų nustatymui. Juostelės turi turėti teigiamą kontrolę;"]
["45.2.4.","Juostelės turi turėti kryžminio reaktyvumo angliavandenių determinantų (CCD) juostą, kad būtų galima įvertinti CCD antikūnų buvimą serume arba plazmoje;"]
["45.3.","Įkvepiamų ir maisto alergenų (specifinių imunoglobulinų E ( (IgE)) panelė",170,"tyr.",null,{"$f":"IF(ISBLANK(E663),\"\", PRODUCT(C663,E663))","v":""}]
["45.3.1.","Viena diagnostine juostele galima identifikuoti bent 20 skirtingų alergenų"]
["45.3.2.","Ne mažiau kaip 7 klasių vertinimo skalė;"]
["45.3.3.","Juostelės turi būti kalibruotos pagal PSO standartą – ne mažiau kaip į taškų standartinė kreivė kiekybinių rezultatų nustatymui. Juostelės turi turėti teigiamą kontrolę;"]
["45.3.4.","Juostelės turi turėti kryžminio reaktyvumo angliavandenių determinantų (CCD) juostą, kad būtų galima įvertinti CCD antikūnų buvimą serume arba plazmoje;"]
["45.4.","Pediatrinė alergenų (specifinių imunoglobulinų E ( (IgE)) panelė",130,"tyr.",null,{"$f":"IF(ISBLANK(E668),\"\", PRODUCT(C668,E668))","v":""}]
["45.4.1.","Viena diagnostine juostele galima identifikuoti bent 20 skirtingų alergenų"]
["45.4.2.","Ne mažiau kaip 7 klasių vertinimo skalė;"]
["45.4.3.","Juostelės turi būti kalibruotos pagal PSO standartą – ne mažiau kaip į taškų standartinė kreivė kiekybinių rezultatų nustatymui. Juostelės turi turėti teigiamą kontrolę;"]
["45.4.4.","Juostelės turi turėti kryžminio reaktyvumo angliavandenių determinantų (CCD) juostą, kad būtų galima įvertinti CCD antikūnų buvimą serume arba plazmoje;"]
["45.5.","Rezultatų vertinimas naudojant su rinkiniais suderintą programinę įrangą ir 3D spalvotą plokščią skaitytuvą, kurį tiekėjas pateikia panaudai.",1,"vnt.",0,{"$f":"IF(ISBLANK(E673),\"\", PRODUCT(C673,E673))","v":0}]
["45.6.","Išorinė tarplaboratorinė kontrolė",20,"vnt.",null,{"$f":"IF(ISBLANK(E674),\"\", PRODUCT(C674,E674))","v":""}]
["45.6.1.","Ne mažiau kaip 16 mėginių, skirtiųnustatyti specifinius IgE prieš įkvepiamuosius, maisto ir vabzdžių alergenus"]
["45.6.2.","Ne mažiau kaip 4 mėginiai, skirti nustatyti bendram IgE nustatyti;"]
["45.6.3.","Mėginio tipas – liofilizuotas serumas;"]
["45.6.4.","Nemokamas dalyvio sertifikatas;"]
[null,null,null,null,"Suma be PVM",{"$f":"IF((COUNT(C653:C678)<>COUNT(F653:F678)),\"\", SUM(F653:F678))","v":""},{"$f":"IF((COUNT(C653:C678)<>COUNT(F653:F678)),\"Neužpildytos visų objektų kainos\", \"\")","v":"Neužpildytos visų objektų kainos"}]
[null,null,null,null,"PVM suma"]
[null,null,null,null,"Suma su PVM",{"$f":"IF(ISBLANK(F680), \"\", SUM(F679:F680))","v":""}]
[]
[]
[]
["46. DALIS","REAGENTAI SARS-COV-2 RNR NUSTATYMUI SISTEMAI GENEXPERT IV"]
[]
["Tiekėjo pasiūlymas:"]
["Nr.","Pavadinimas","Maksimalus kiekis","Mato vienetas","Vieneto įkainis be PVM, Eur","Suma be PVM, Eur","Siūlomos prekės modelis ir modelio modifikacija (jei taikoma)","Siūlomų parametrų reikšmės"]
["46.","Reagentai SARS-CoV-2 RNR nustatymui sistemai GeneXpert IV"]
["46.1.","Reagentai SARS-CoV-2 RNR",1200,"tyr.",35,{"$f":"IF(ISBLANK(E690),\"\", PRODUCT(C690,E690))","v":42000},"Xpert Xpress SARS-CoV-2; kodas XPRSARS-COV2-10; XP3SARS-COV2-10"]
["46.1.1.","Kokybinis SARS-CoV 2 nukleorūgščių nustatymas",null,null,null,null,null,"Kokybinis SARS-CoV 2 nukleorūgščių nustatymas"]
["46.1.2.","Mėginys - nosiaryklės tepinėlis arba nosies nuoplovos",null,null,null,null,null,"Mėginys - nosiaryklės tepinėlis arba nosies nuoplovos"]
["46.1.3.","tyrimo atlikimo laikas ne daugiau 45 min.",null,null,null,null,null,"tyrimo atlikimo laikas 45 min."]
[null,null,null,null,"Suma be PVM",{"$f":"IF((COUNT(C690:C693)<>COUNT(F690:F693)),\"\", SUM(F690:F693))","v":42000},{"$f":"IF((COUNT(C690:C693)<>COUNT(F690:F693)),\"Neužpildytos visų objektų kainos\", \"\")","v":""}]
[null,null,null,null,"PVM suma",2100]
[null,null,null,null,"Suma su PVM",{"$f":"IF(ISBLANK(F695), \"\", SUM(F694:F695))","v":44100}]
[]
[]
[]
["47. DALIS","REAGENTŲ RINKINYS TNI NUSTATYMUI ANALIZATORIUIAQT90FLEX"]
[]
["Tiekėjo pasiūlymas:"]
["Nr.","Pavadinimas","Maksimalus kiekis","Mato vienetas","Vieneto įkainis be PVM, Eur","Suma be PVM, Eur","Siūlomos prekės modelis ir modelio modifikacija (jei taikoma)","Siūlomų parametrų reikšmės"]
["47.","Reagentų rinkinys TnI nustatymui analizatoriuiAQT90FLEX"]
["47.1.","Reagentų rinkinys TnI nustatymui analizatoriuiAQT90FLEX",1200,"tyr.",null,{"$f":"IF(ISBLANK(E705),\"\", PRODUCT(C705,E705))","v":""}]
["47.1.1.","Rezultatas turi atitikti 99-ą procentilę ne blogiau nei 0.027 µg/L."]
["47.1.2."," Matavimo laikas ne ilgiau 20min. "]
["47.1.3.","Metodas fluorometrinis arba lygiavertis."]
["47.1.4.","Reagentų galiojimo terminas ne trumpesnis kaip 6 mėnesiai nuo pristatymo dienos"]
["47.1.5.","Mėginio tipas ir tūris:pilnas kraujas iš uždarų EDTA mėgintuvėlių, ne daugiau nei 4 ml."]
[null,null,null,null,"Suma be PVM",{"$f":"IF((COUNT(C705:C710)<>COUNT(F705:F710)),\"\", SUM(F705:F710))","v":""},{"$f":"IF((COUNT(C705:C710)<>COUNT(F705:F710)),\"Neužpildytos visų objektų kainos\", \"\")","v":"Neužpildytos visų objektų kainos"}]
[null,null,null,null,"PVM suma"]
[null,null,null,null,"Suma su PVM",{"$f":"IF(ISBLANK(F712), \"\", SUM(F711:F712))","v":""}]
[]
[]
[]
["48. DALIS","CRB REAGENTAS ANALIZATORIUI COBAS C111"]
[]
["Tiekėjo pasiūlymas:"]
["Nr.","Pavadinimas","Maksimalus kiekis","Mato vienetas","Vieneto įkainis be PVM, Eur","Suma be PVM, Eur","Siūlomos prekės modelis ir modelio modifikacija (jei taikoma)","Siūlomų parametrų reikšmės"]
["48.","CRB reagentas analizatoriui Cobas c111"]
["48.1.","CRB reagentas analizatoriui Cobas c111",200,"tyr.",null,{"$f":"IF(ISBLANK(E722),\"\", PRODUCT(C722,E722))","v":""}]
["48.1.1.","Reagentų pakuotė lengvai daloma, pritaikyta pavieniams tyrimams atlikti"]
[null,null,null,null,"Suma be PVM",{"$f":"IF((COUNT(C722:C723)<>COUNT(F722:F723)),\"\", SUM(F722:F723))","v":""},{"$f":"IF((COUNT(C722:C723)<>COUNT(F722:F723)),\"Neužpildytos visų objektų kainos\", \"\")","v":"Neužpildytos visų objektų kainos"}]
[null,null,null,null,"PVM suma"]
[null,null,null,null,"Suma su PVM",{"$f":"IF(ISBLANK(F725), \"\", SUM(F724:F725))","v":""}]
[]
[]
[]
["49. DALIS","REAGENTAS KALPROTEKTINO TYRIMAMS"]
[]
["Tiekėjo pasiūlymas:"]
["Nr.","Pavadinimas","Maksimalus kiekis","Mato vienetas","Vieneto įkainis be PVM, Eur","Suma be PVM, Eur","Siūlomos prekės modelis ir modelio modifikacija (jei taikoma)","Siūlomų parametrų reikšmės"]
["49.","Reagentas kalprotektino tyrimams"]
["49.1.","Reagentas kalprotektino tyrimams",250,"tyr.",null,{"$f":"IF(ISBLANK(E735),\"\", PRODUCT(C735,E735))","v":""}]
["49.1.1.","Imunochromatografinis metodas"]
["49.1.2.","Pavieniams tyrimams atlikti"]
[null,null,null,null,"Suma be PVM",{"$f":"IF((COUNT(C735:C737)<>COUNT(F735:F737)),\"\", SUM(F735:F737))","v":""},{"$f":"IF((COUNT(C735:C737)<>COUNT(F735:F737)),\"Neužpildytos visų objektų kainos\", \"\")","v":"Neužpildytos visų objektų kainos"}]
[null,null,null,null,"PVM suma"]
[null,null,null,null,"Suma su PVM",{"$f":"IF(ISBLANK(F739), \"\", SUM(F738:F739))","v":""}]

{"sheet":"Subtiekėjai ir priedai","index":1,"n_rows":100,"n_cols":11,"rows_kept":100,"cut":false,"hidden":false,"merged":[[47,0,47,9],[52,4,52,9],[50,4,50,9],[52,0,52,3],[50,0,50,3],[38,1,38,6],[37,1,37,6],[36,1,36,6],[35,1,35,6],[43,1,43,6],[42,1,42,6],[41,1,41,6],[40,1,40,6],[39,1,39,6],[32,0,32,9],[34,7,34,9],[34,1,34,6],[45,7,45,9],[42,7,42,9],[37,7,37,9],[36,7,36,9],[35,7,35,9],[44,7,44,9],[43,7,43,9],[41,7,41,9],[40,7,40,9],[39,7,39,9],[38,7,38,9],[45,1,45,6],[44,1,44,6],[1,0,2,10],[30,0,30,9],[14,5,14,7],[8,5,8,7],[7,5,7,7],[6,5,6,7],[14,8,14,9],[8,8,8,9],[7,8,7,9],[6,8,6,9],[14,0,14,1],[8,0,8,1],[7,0,7,1],[6,0,6,1],[14,2,14,4],[8,2,8,4],[7,2,7,4],[9,8,9,9],[6,2,6,4],[5,2,5,4],[5,8,5,9],[4,8,4,9],[4,5,4,7],[4,2,4,4],[4,0,4,1],[5,5,5,7],[5,0,5,1],[9,0,9,1],[13,2,13,4],[12,2,12,4],[11,2,11,4],[10,2,10,4],[9,2,9,4],[13,5,13,7],[12,5,12,7],[11,5,11,7],[10,5,10,7],[9,5,9,7],[16,0,16,10],[18,8,18,9],[18,5,18,7],[18,2,18,4],[18,0,18,1],[13,0,13,1],[12,0,12,1],[11,0,11,1],[10,0,10,1],[13,8,13,9],[12,8,12,9],[11,8,11,9],[10,8,10,9],[23,8,23,9],[22,8,22,9],[21,8,21,9],[20,8,20,9],[19,8,19,9],[28,8,28,9],[27,8,27,9],[26,8,26,9],[25,8,25,9],[24,8,24,9],[23,5,23,7],[22,5,22,7],[21,5,21,7],[20,5,20,7],[19,5,19,7],[28,5,28,7],[27,5,27,7],[26,5,26,7],[25,5,25,7],[24,5,24,7],[23,2,23,4],[22,2,22,4],[21,2,21,4],[20,2,20,4],[19,2,19,4],[28,2,28,4],[27,2,27,4],[26,2,26,4],[25,2,25,4],[24,2,24,4],[23,0,23,1],[22,0,22,1],[21,0,21,1],[20,0,20,1],[19,0,19,1],[28,0,28,1],[27,0,27,1],[26,0,26,1],[25,0,25,1],[24,0,24,1]]}
[]
["Ūkio subjektai (įskaitant kvazisubtiekėjus - fiziniai asmenys, kuriuos ketinama įdarbinti pirkimo laimėjimo atveju), kurių pajėgumais tiekėjas remiasi, kad atitiktų keliamus kvalifikacijos reikalavimus:"]
[]
[]
["Pavadinimas*",null,"Kodas, adresas",null,null,"Perduodami įsipareigojimai",null,null,"Perduodamų įsipareigojimų dalis nuo visos pirkimo sutarties (Eur arba %)",null,"Kval. Reikalavimo Nr."]
[]
[]
[]
[]
[]
[]
[]
[]
[]
[]
[]
["Subtiekėjams / subteikėjams / subrangovams numatomos perduoti veiklos (privaloma nurodyti) ir šių ūkio subjektų pavadinimai (jei žinomi):"]
[]
["Pavadinimas",null,"Kodas, adresas",null,null,"Perduodama veikla*",null,null,"Perduodamos veiklos dalis nuo visos pirkimo sutarties (Eur arba %)"]
[]
[]
[]
[]
[]
[]
[]
[]
[]
[]
[]
[]
[]
["Kartu su pasiūlymu pateikiami šie dokumentai:"]
[]
["Nr.","Dokumento  pavadinimas",null,null,null,null,null,"Dokumentas yra konfidencialus? Taip/Ne"]
[1,"Jungtinės veiklos kopija (jei taikoma)"]
[2,"Europos bendrasis viešųjų pirkimų dokumentas"]
[3,"Subtiekimo sutartis, ketinimų protokolas, preliminarios sutartys ar kiti dokumentai, patvirtinantys, kad laimėjus pirkimą tiekėjui bus prieinami kitų ūkio subjektų ištekliai (jei pasitelkiami kvalifikacijos atitikimui)"]
["1.","Įgaliojimas pasirašyti pasiūlymą",null,null,null,null,null,"Ne"]
["2.","EBVPD",null,null,null,null,null,"Ne"]
["3.","42 p.d. aprašymas",null,null,null,null,null,"Ne"]
["4.","42 p.d. CE sertifikatas",null,null,null,null,null,"Ne"]
["5.","42 p.d. gamintojo įgaliojimas",null,null,null,null,null,"Ne"]
["6.","46 p.d. gamintojo įgaliojimas",null,null,null,null,null,"Ne"]
["7.","46 p.d. metodika",null,null,null,null,null,"Ne"]
["8.\n9.","46 p.d. saugos duomenų lapas\n46 p.d. sertifikatas",null,null,null,null,null,"Ne"]
[]
["Pasiūlyme nurodyta Prekės kaina, išskyrus jos sudedamąsias dalis, subtiekėjai, taip pat kita informacija, kuri teisės aktų nustatyta tvarka turi būti skelbiama arba kitokiu būdu viešai prieinama visuomenei, nėra laikoma konfidencialia informacija. Konfidencialią informaciją sudaro, visų pirma, komercinė (gamybinė) paslaptis ir konfidencialieji pasiūlymų aspektai. Informacija, kurią viešai skelbti įpareigoja Lietuvos Respublikos įstatymai, negali būti tiekėjo nurodoma kaip konfidenciali, todėl, tiekėjui nurodžius tokią informaciją kaip konfidencialią, perkančioji organizacija turi teisę ją skelbti. Jei tiekėjas nenurodo konfidencialios informacijos, laikoma, kad konfidencialios informacijos tiekėjo pasiūlyme nėra. Vadovaujantis Informacijos viešinimo Centrinėje viešųjų pirkimų informacinėje sistemoje tvarkos aprašu, patvirtintu Viešųjų pirkimų tarnybos direktoriaus 2017 m. birželio 19 d. įsakymu Nr. 1S-91 „Dėl Informacijos viešinimo Centrinėje viešųjų pirkimų informacinėje sistemoje tvarkos aprašo patvirtinimo“, perkančioji organizacija laimėjusio dalyvio pasiūlymą, išskyrus informaciją, kurią tiekėjas nurodė kaip konfidencialią, paskelbs CVP IS."]
[]
[]
["Tiekėjo arba jo įgalioto asmens pareigų pavadinimas:",null,null,null,"Viešųjų pirkimų specialistė"]
[]
["Pasirašančio asmens vardas ir pavardė:",null,null,null,"Lina Alesienė"]
[]
[]
[]
[]
[]
[]
[]
[]
[]
[]
[]
[]
[]
[]
[]
[]
[]
[]
[]
[]
[]
[]
[]
[]
[]
[]
[]
[]
[]
[]
[]
[]
[]
[]
[]
[]
[]
[]
[]
[]
[]
[]
[]
[]
[]
[]
["6279-1 2022-05-05 17:45:34"]